bitfinex/quotes_ETHUSD_20240603
["timestamp","ask_amount","ask_price","bid_price","bid_amount"]
[1717417326490,0.54647129,3819.1,3818.8,1.4674]
[1717417326724,0.54647129,3819.2,3819.0,0.784]
[1717417326898,0.54647129,3819.2,3819.1,0.784]
[1717417327221,0.74648027,3819.2,3819.1,0.784]
[1717417328041,0.74648027,3819.2,3818.8,0.6834]
[1717417328186,0.20000405,3819.1,3818.9,0.55]
[1717417328391,0.54647129,3819.2,3818.9,0.55]
[1717417328907,0.54647129,3819.3,3818.9,0.55]
[1717417329099,0.19999461,3819.2,3818.9,0.55]
[1717417329299,0.54647129,3819.3,3819.0,2.277]
[1717417329526,0.54647129,3819.3,3819.1,0.84604]
[1717417329729,0.54647129,3819.3,3819.1,0.55]
[1717417329898,0.19998209,3819.2,3819.1,0.55]
[1717417331243,0.19998209,3819.2,3818.9,0.55]
[1717417331548,0.54647129,3819.2,3818.9,0.55]
[1717417331698,0.54647129,3819.2,3818.8,0.55]
[1717417331896,0.54647129,3819.2,3818.8,1.14542]
[1717417332139,0.19996437,3819.1,3818.8,1.14542]
[1717417332292,0.54647129,3819.3,3818.8,1.14542]
[1717417332499,0.19995022,3819.2,3818.8,0.55]
[1717417332809,0.54647129,3819.2,3818.8,0.55]
[1717417333745,0.54647129,3819.3,3818.8,0.55]
[1717417333896,0.74642037,3819.2,3818.8,0.55]
[1717417334096,0.54647129,3819.2,3818.8,0.55]
[1717417334545,0.19995473,3819.1,3818.8,0.55]
[1717417334745,0.54647129,3819.2,3818.8,0.55]
[1717417334901,0.19995403,3819.1,3818.8,0.55]
[1717417335244,0.54647129,3819.3,3818.8,1.14542]
[1717417335400,0.54647129,3819.3,3818.8,0.55]
[1717417335602,0.74641802,3819.2,3818.8,0.55]
[1717417335842,0.19994673,3819.1,3818.8,0.55]
[1717417336049,0.54647129,3819.2,3818.8,0.55]
[1717417336809,0.54647129,3819.3,3818.8,0.55]
[1717417337047,0.74641252,3819.2,3818.8,0.55]
[1717417337337,0.54647129,3819.2,3818.8,0.55]
[1717417337726,0.19994073,3819.1,3818.8,0.55]
[1717417338038,0.54647129,3819.2,3818.8,0.55]
[1717417338228,0.19993556,3819.1,3818.8,0.55]
[1717417338428,0.54647129,3819.2,3818.8,0.55]
[1717417338634,0.54647129,3819.3,3818.8,0.55]
[1717417338813,0.19993109,3819.2,3818.8,0.55]
[1717417339143,0.54647129,3819.3,3818.8,0.55]
[1717417339346,0.19992414,3819.2,3818.8,0.55]
[1717417339546,0.54647129,3819.3,3818.8,0.55]
[1717417339841,0.19992386,3819.2,3818.8,0.55]
[1717417340006,0.54647129,3819.3,3818.8,0.55]
[1717417340205,0.1999234,3819.2,3818.8,0.55]
[1717417340405,0.54647129,3819.3,3818.8,0.55]
[1717417340650,0.1999188,3819.2,3818.8,0.55]
[1717417340947,0.54647129,3819.3,3818.8,0.55]
[1717417341139,0.19992031,3819.2,3818.8,0.55]
[1717417341295,0.54647129,3819.3,3818.9,0.29542]
[1717417341511,0.1258484,3819.4,3819.0,0.55]
[1717417344177,0.1258484,3819.4,3819.0,2.426]
[1717417344371,0.1258484,3819.4,3819.0,5.426]
[1717417345380,0.1258484,3819.4,3819.0,3.0]
[1717417345699,0.1258484,3819.4,3818.5,4.876]
[1717417345989,0.1258484,3819.4,3818.6,0.7951172]
[1717417347143,0.1258484,3819.4,3818.4,3.1334]
[1717417347344,0.74738571,3819.3,3818.4,0.1334]
[1717417347641,0.54647129,3819.3,3818.4,0.1334]
[1717417347874,0.67231969,3819.4,3818.5,7.8558]
[1717417348075,0.20092748,3819.3,3818.6,3.98652]
[1717417348390,0.1258484,3819.4,3818.7,12.0975]
[1717417348692,0.1258484,3819.4,3818.8,0.55]
[1717417348852,0.1258484,3819.4,3818.8,3.55]
[1717417349058,0.1258484,3819.4,3819.1,1.876]
[1717417349283,0.1258484,3819.4,3819.2,0.55]
[1717417349496,0.1258484,3819.4,3819.3,2.33]
[1717417349656,0.1258484,3819.4,3819.3,5.88]
[1717417350573,0.1258484,3819.4,3819.3,3.55]
[1717417350780,0.1258484,3819.4,3819.3,0.55]
[1717417350981,0.1258484,3819.4,3819.1,0.55]
[1717417351205,0.1258484,3819.4,3819.1,1.01745461]
[1717417355658,0.1258484,3819.4,3819.3,1.876]
[1717417355988,0.1258484,3819.4,3819.3,2.426]
[1717417357595,0.1258484,3819.4,3819.3,0.55]
[1717417358165,0.1258484,3819.4,3819.2,0.55]
[1717417358384,0.1258484,3819.4,3819.3,0.40174546]
[1717417358572,0.1258484,3819.4,3819.3,0.95174546]
[1717417364813,0.1258484,3819.4,3819.3,2.82774546]
[1717417365123,0.1258484,3819.4,3819.3,5.82774546]
[1717417367924,0.1258484,3819.4,3819.3,3.40174546]
[1717417368176,0.1258484,3819.4,3819.3,3.0]
[1717417368518,0.1258484,3819.4,3818.9,1.876]
[1717417369621,0.1258484,3819.4,3819.0,0.55]
[1717417373785,0.1258484,3819.4,3819.1,2.4326]
[1717417373945,0.1258484,3819.4,3819.2,0.55]
[1717417374146,0.1258484,3819.4,3819.3,0.65326]
[1717417374373,0.1258484,3819.4,3819.3,1.20326]
[1717417387478,0.1258484,3819.4,3819.3,2.11274954]
[1717417387681,0.1258484,3819.4,3819.3,5.11274954]
[1717417388162,0.1258484,3819.4,3819.3,4.42304954]
[1717417388368,1.57145186,3820.6,3819.3,4.42304954]
[1717417388369,0.34647129,3820.4,3819.3,8.69363132]
[1717417388578,0.14570312,3820.3,3819.7,1.876]
[1717417388752,3.28510693,3820.7,3820.1,1.876]
[1717417388947,2.4654,3820.7,3820.2,0.55]
[1717417389387,2.4654,3821.0,3820.2,1.0926]
[1717417389589,2.4654,3821.0,3820.2,4.0926]
[1717417389757,0.1358598,3820.9,3820.2,4.0926]
[1717417389959,0.1358598,3820.8,3820.2,4.0926]
[1717417390166,0.1358598,3820.7,3820.2,4.0926]
[1717417390367,3.28510693,3821.0,3820.2,4.0926]
[1717417390598,0.13586057,3820.9,3820.2,4.0926]
[1717417390822,0.1358607,3820.8,3820.2,4.0926]
[1717417391126,3.28510693,3821.0,3820.3,0.36256898]
[1717417391333,0.13585134,3820.9,3820.4,0.55]
[1717417391478,0.13585134,3820.8,3820.4,0.55]
[1717417391684,2.4654,3821.0,3820.4,0.55]
[1717417391885,0.13583017,3820.9,3820.4,0.55]
[1717417392105,0.13583017,3820.8,3820.4,0.55]
[1717417392299,2.4654,3821.0,3820.4,0.55]
[1717417392503,0.1358203,3820.9,3820.3,0.55]
[1717417392697,0.1358203,3820.9,3820.0,0.55]
[1717417392897,0.1358203,3820.8,3820.0,0.55]
[1717417393187,0.1358203,3820.7,3819.9,4.876]
[1717417393398,3.28510693,3821.0,3819.9,1.876]
[1717417393611,0.73081122,3820.9,3819.9,1.876]
[1717417393889,0.13586108,3820.8,3820.0,2.4627]
[1717417394238,0.13586108,3820.7,3820.0,5.4627]
[1717417394448,0.59495014,3820.9,3820.1,0.55]
[1717417394746,0.13592214,3820.8,3820.1,3.55]
[1717417394908,0.13593206,3820.7,3820.1,3.55]
[1717417395243,3.28510693,3821.0,3820.1,3.55]
[1717417395542,0.13591271,3820.9,3820.1,3.55]
[1717417395944,0.13591271,3820.8,3820.7,0.781]
[1717417396247,0.13591271,3820.8,3820.7,1.331]
[1717417396606,3.28510693,3821.0,3820.7,1.331]
[1717417396808,0.13589851,3820.9,3820.7,0.55]
[1717417397109,2.4654,3821.0,3820.7,1.331]
[1717417397322,0.1358823,3820.9,3820.7,1.331]
[1717417397517,2.4654,3821.0,3820.7,1.331]
[1717417397518,0.1358823,3820.8,3820.7,1.331]
[1717417398046,0.13589502,3820.8,3820.7,1.331]
[1717417399340,3.01361749,3821.0,3820.7,1.331]
[1717417399650,0.13586023,3820.9,3820.7,1.331]
[1717417399952,0.54821749,3820.9,3820.7,1.331]
[1717417400940,0.54821749,3821.0,3820.7,1.331]
[1717417401453,0.68405687,3820.9,3820.7,1.331]
[1717417401613,0.54821749,3820.9,3820.7,1.331]
[1717417402022,3.21430693,3821.1,3820.7,1.331]
[1717417402023,0.54821749,3821.0,3820.7,1.331]
[1717417402247,0.13584296,3820.9,3820.7,1.331]
[1717417402457,0.54821749,3821.0,3820.7,1.331]
[1717417402842,0.13583198,3820.9,3820.7,1.331]
[1717417403163,0.38983564,3820.9,3820.6,0.781]
[1717417403358,2.2995,3820.6,3820.0,3.0]
[1717417403546,2.2995,3820.6,3820.1,0.781]
[1717417403747,0.50267121,3820.5,3820.0,3.0]
[1717417404061,0.68418965,3820.4,3820.0,3.781]
[1717417404215,0.54821749,3820.4,3820.1,7.8532]
[1717417404422,0.54821749,3820.4,3820.2,0.781]
[1717417404936,0.54821749,3820.5,3820.2,0.781]
[1717417405149,0.13594648,3820.4,3820.2,0.781]
[1717417405356,0.13594648,3820.4,3820.1,7.8532]
[1717417405563,2.402,3820.2,3820.1,7.8532]
[1717417406053,4.13876001,3820.2,3820.1,7.8532]
[1717417406257,3.74225994,3820.2,3820.1,7.8532]
[1717417406470,5.40095876,3820.2,3820.1,7.8532]
[1717417406634,4.60636069,3820.2,3820.1,7.8532]
[1717417406835,3.82536069,3820.2,3820.1,7.8532]
[1717417407653,3.82537708,3820.2,3820.1,7.8532]
[1717417408222,4.91831966,3820.2,3820.1,7.8532]
[1717417408442,3.82537708,3820.2,3820.1,7.8532]
[1717417408864,7.3329009,3820.2,3820.1,7.8532]
[1717417409160,4.39113995,3820.2,3820.1,7.8532]
[1717417409359,4.44993995,3820.2,3820.1,7.8532]
[1717417409536,3.5858392,3820.2,3820.1,7.8532]
[1717417410725,3.5858392,3820.2,3820.1,1.68167517]
[1717417411044,0.6538,3820.1,3817.9,2.3417]
[1717417411245,0.54822491,3819.0,3817.9,2.3417]
[1717417411560,0.68429438,3818.9,3817.9,2.3417]
[1717417411861,0.68429438,3818.8,3817.5,4.143]
[1717417412038,0.13606947,3818.7,3817.5,4.143]
[1717417412234,0.54822491,3818.8,3817.5,4.143]
[1717417412425,0.82233736,3819.0,3817.5,4.143]
[1717417412426,0.54822491,3819.0,3817.6,0.4143]
[1717417412629,0.16142875,3818.9,3817.6,0.4143]
[1717417413012,0.54822491,3819.0,3817.6,3.4143]
[1717417413135,0.16143907,3818.9,3817.6,3.4143]
[1717417413336,0.54822491,3819.1,3817.6,3.4143]
[1717417413539,0.54822491,3819.1,3817.7,0.75573]
[1717417413727,0.54822491,3819.1,3817.8,0.55]
[1717417414463,0.16137972,3819.0,3817.8,0.55]
[1717417414627,0.16132993,3819.0,3817.8,0.55]
[1717417414827,0.54822491,3819.1,3817.8,0.55]
[1717417415029,0.54822491,3819.1,3817.9,0.472003]
[1717417415272,0.54822491,3819.2,3818.0,0.55]
[1717417415496,1.20202491,3819.3,3818.0,0.55]
[1717417415634,0.7094817,3819.2,3818.0,0.55]
[1717417415977,0.54822491,3819.2,3818.0,0.55]
[1717417416151,0.20243623,3819.1,3818.0,0.55]
[1717417416370,0.20243623,3819.1,3817.8,0.55]
[1717417416371,0.75066114,3819.1,3817.8,0.55]
[1717417416681,0.16124326,3819.0,3817.8,0.55]
[1717417416839,0.161279,3818.9,3817.8,0.55]
[1717417417038,0.54822491,3819.0,3817.8,0.55]
[1717417417247,0.31858083,3818.9,3817.8,0.55]
[1717417417461,0.15729985,3818.9,3817.7,0.55]
[1717417418867,1.4722,3818.8,3817.7,0.55]
[1717417422665,1.4722,3819.2,3818.0,1.876]
[1717417422866,1.4722,3819.2,3818.1,0.55]
[1717417423034,1.70165374,3819.2,3818.1,0.55]
[1717417423966,1.70165374,3819.2,3818.2,2.3574]
[1717417426488,2.02042491,3819.6,3818.2,2.3574]
[1717417426724,2.02042491,3819.6,3818.3,0.55]
[1717417426868,1.4722,3819.6,3818.3,0.55]
[1717417427067,0.66977638,3820.0,3818.4,1.876]
[1717417427068,0.54822491,3819.8,3818.4,1.876]
[1717417427275,0.54822491,3819.9,3818.6,2.4743]
[1717417427514,1.4722,3820.0,3818.6,5.4743]
[1717417427669,0.22945374,3819.9,3818.7,0.55]
[1717417428094,0.22945374,3819.9,3818.7,3.55]
[1717417428489,2.02042491,3820.4,3818.8,1.876]
[1717417428699,0.16068603,3820.3,3818.9,0.55]
[1717417428902,2.02042491,3820.4,3818.9,0.55]
[1717417428903,1.4722,3820.4,3818.9,0.55]
[1717417429107,0.20204249,3820.3,3818.9,0.55]
[1717417429335,0.20204249,3820.3,3818.7,3.0]
[1717417429336,1.4722,3820.2,3818.7,3.0]
[1717417429474,1.4722,3820.2,3818.6,2.4743]
[1717417429475,0.70899329,3820.1,3818.8,0.55]
[1717417429680,0.70899329,3820.0,3818.7,3.55]
[1717417430040,0.30035307,3819.9,3818.7,3.55]
[1717417431950,1.4722,3819.8,3818.7,3.55]
[1717417432829,1.4722,3819.8,3818.7,0.55]
[1717417433051,1.4722,3819.8,3818.4,4.876]
[1717417433052,1.4722,3819.8,3818.8,3.0]
[1717417433229,0.38927955,3819.7,3818.5,0.55]
[1717417433897,0.95515083,3819.7,3818.5,0.55]
[1717417434350,2.52716835,3819.7,3818.5,0.55]
[1717417434645,0.38927955,3819.7,3818.5,0.55]
[1717417435495,2.52715512,3819.7,3818.5,0.55]
[1717417435740,0.39993551,3819.6,3818.5,0.55]
[1717417438409,0.56583825,3819.6,3818.5,0.55]
[1717417438606,3.04421752,3819.8,3818.5,0.55]
[1717417438843,0.56583352,3819.7,3818.5,0.55]
[1717417439136,3.04421752,3819.8,3818.5,0.55]
[1717417439347,1.4722,3819.8,3818.8,1.876]
[1717417440403,1.4722,3819.8,3818.9,2.3259]
[1717417442100,1.57201752,3820.0,3819.3,1.876]
[1717417442309,1.57201752,3820.3,3819.7,4.1284]
[1717417442503,0.29425798,3820.3,3819.8,1.876]
[1717417442713,1.4722,3820.4,3819.8,1.876]
[1717417442924,1.4722,3820.4,3819.3,4.876]
[1717417444903,4.15820648,3820.4,3819.3,4.876]
[1717417445259,0.16265134,3820.3,3819.3,3.0]
[1717417445403,0.16265134,3820.3,3819.1,1.876]
[1717417445404,0.41582065,3820.3,3819.1,1.876]
[1717417445613,1.4722,3820.2,3818.8,2.39]
[1717417445918,0.54822491,3820.0,3818.8,2.39]
[1717417446328,0.16225135,3819.9,3818.8,2.39]
[1717417446543,0.54822491,3820.0,3818.8,2.39]
[1717417446837,0.16228161,3819.9,3818.8,2.39]
[1717417447036,0.54822491,3820.0,3818.8,2.39]
[1717417447238,0.16232466,3819.9,3819.0,1.876]
[1717417447541,0.54822491,3820.1,3819.1,0.55]
[1717417448054,0.54822491,3820.2,3819.4,1.876]
[1717417448236,0.88402088,3820.2,3819.4,1.876]
[1717417448549,0.1623271,3820.1,3819.4,1.876]
[1717417448706,0.88402088,3820.2,3819.4,1.876]
[1717417448908,0.16232576,3820.1,3819.4,1.876]
[1717417449109,0.88402088,3820.2,3819.4,1.876]
[1717417449421,1.0799251,3820.1,3819.4,1.876]
[1717417449800,0.16232462,3820.0,3819.4,4.162]
[1717417450131,0.91760048,3820.1,3819.4,4.162]
[1717417450132,0.36937557,3820.1,3819.4,4.162]
[1717417450323,0.88402088,3820.2,3819.4,4.162]
[1717417450691,0.16238964,3820.1,3819.4,4.162]
[1717417450817,0.54822491,3820.3,3819.4,4.162]
[1717417451345,2.66794079,3820.7,3820.2,1.876]
[1717417451346,0.54822491,3820.7,3820.2,1.876]
[1717417451545,1.36816375,3821.2,3820.2,2.30703]
[1717417451546,0.54822491,3821.1,3820.2,2.30703]
[1717417451729,0.54822491,3821.1,3820.6,1.876]
[1717417451928,0.82233736,3821.3,3820.6,1.876]
[1717417451929,0.54822491,3821.3,3820.6,1.876]
[1717417452335,0.54822491,3821.4,3820.6,1.876]
[1717417453341,0.0082688,3821.7,3820.6,1.876]
[1717417453342,0.54822491,3821.5,3820.6,1.876]
[1717417453646,0.13788311,3821.4,3820.6,1.876]
[1717417454306,0.13788311,3821.4,3820.2,0.43103]
[1717417454517,0.54822491,3821.6,3820.7,1.876]
[1717417454734,0.16193279,3821.5,3820.7,1.876]
[1717417455056,0.54822491,3821.6,3820.7,1.876]
[1717417455558,0.54822491,3821.6,3820.7,4.3701]
[1717417455931,0.55649371,3821.7,3820.7,4.3701]
[1717417456152,0.44697082,3821.6,3820.7,4.3701]
[1717417456533,0.28510311,3821.6,3820.7,4.3701]
[1717417457627,0.0082688,3821.7,3820.7,4.3701]
[1717417459841,0.0082688,3821.7,3820.8,3.0]
[1717417460434,0.0082688,3821.7,3820.7,2.4941]
[1717417462248,0.0082688,3821.7,3820.8,1.876]
[1717417462449,0.0082688,3821.7,3820.8,4.876]
[1717417462763,0.0082688,3821.7,3820.9,0.73701]
[1717417463063,0.0082688,3821.7,3820.9,3.73701]
[1717417463560,0.0082688,3821.7,3820.9,0.73701]
[1717417463782,0.0082688,3821.7,3821.0,2.4423]
[1717417464075,0.0082688,3821.7,3821.0,5.4423]
[1717417464225,0.0082688,3821.7,3821.1,1.105531]
[1717417464837,0.0082688,3821.7,3821.1,4.105531]
[1717417467628,0.0082688,3821.7,3821.1,3.0]
[1717417467827,0.0082688,3821.7,3821.0,2.4423]
[1717417468877,0.0082688,3821.7,3820.5,3.0]
[1717417468878,0.0082688,3821.7,3820.7,2.256]
[1717417470353,0.0082688,3821.7,3820.3,2.3707]
[1717417470559,1.4722,3821.6,3820.3,2.3707]
[1717417470872,0.20304688,3821.5,3820.3,2.3707]
[1717417471176,0.20304688,3821.5,3820.0,2.2786]
[1717417471490,0.20304688,3821.5,3820.1,7.8519]
[1717417471708,0.20304688,3821.5,3820.2,3.0]
[1717417471981,0.20304688,3821.5,3820.3,7.8528]
[1717417472139,0.22317406,3821.4,3820.3,7.8528]
[1717417472336,3.04333776,3821.6,3820.3,7.8528]
[1717417472554,1.4722,3821.6,3820.3,7.8528]
[1717417474047,1.4722,3821.6,3820.3,7.7903]
[1717417476547,0.0082688,3821.7,3820.7,1.876]
[1717417478271,0.0082688,3821.7,3820.6,3.0]
[1717417478448,0.0082688,3821.7,3820.5,5.2618]
[1717417478848,0.0082688,3821.7,3820.6,2.467]
[1717417479044,0.0082688,3821.7,3820.6,5.467]
[1717417479349,0.0082688,3821.7,3820.7,2.500603]
[1717417479659,0.0082688,3821.7,3820.8,3.0]
[1717417480080,0.0082688,3821.7,3820.9,2.2813]
[1717417483667,0.0082688,3821.7,3820.8,3.0]
[1717417483871,0.0082688,3821.7,3820.9,7.9141]
[1717417484071,0.0082688,3821.7,3821.0,3.0]
[1717417486766,0.0082688,3821.7,3821.0,4.1538703]
[1717417487084,0.0082688,3821.7,3821.1,2.3606]
[1717417490959,0.0082688,3821.7,3821.0,4.1538703]
[1717417491160,0.0082688,3821.7,3821.0,3.0]
[1717417492179,0.71069593,3821.6,3821.0,3.0]
[1717417492483,0.710708,3821.5,3820.9,7.9141]
[1717417492717,0.54822491,3821.5,3820.9,7.9141]
[1717417493244,0.16250738,3821.4,3820.9,7.9141]
[1717417493418,0.22818701,3821.3,3820.9,7.9141]
[1717417494189,0.54822491,3821.4,3820.9,7.9141]
[1717417494407,0.16264167,3821.3,3820.9,7.9141]
[1717417494578,0.54822491,3821.4,3820.9,7.9141]
[1717417495194,0.16270085,3821.3,3820.9,7.9141]
[1717417495393,0.54822491,3821.4,3820.9,7.9141]
[1717417495596,0.16269279,3821.3,3820.9,7.9141]
[1717417495884,0.54822491,3821.5,3820.9,7.9141]
[1717417496087,0.16267125,3821.4,3820.9,7.9141]
[1717417496383,0.54822491,3821.4,3820.9,7.9141]
[1717417496546,0.1627632,3821.3,3820.9,7.9141]
[1717417496731,0.54822491,3821.4,3820.9,7.9141]
[1717417496931,0.16276224,3821.3,3820.9,7.9141]
[1717417497165,0.54822491,3821.3,3820.9,7.9141]
[1717417497488,0.71105946,3821.2,3820.9,7.9141]
[1717417497629,0.16283455,3821.1,3820.9,7.9141]
[1717417497837,0.54822491,3821.1,3820.9,7.9141]
[1717417498735,0.44713493,3821.0,3820.9,7.9141]
[1717417498935,1.26947229,3821.0,3820.9,7.9141]
[1717417499167,0.89442559,3821.0,3820.9,7.9141]
[1717417499367,0.44713493,3821.0,3820.9,7.9141]
[1717417499901,0.99570711,3821.0,3820.9,7.9141]
[1717417500198,0.71143088,3821.0,3820.9,7.9141]
[1717417500497,0.1628587,3821.0,3820.9,7.9141]
[1717417501480,0.54857218,3821.3,3820.9,7.9141]
[1717417501681,0.16281085,3821.2,3820.9,7.9141]
[1717417501866,0.54857218,3821.2,3820.9,7.9141]
[1717417502070,0.54857218,3821.2,3820.9,9.235]
[1717417502455,0.54857218,3821.3,3820.9,9.235]
[1717417502652,0.16282648,3821.2,3820.9,9.235]
[1717417502886,0.54857218,3821.3,3820.9,9.235]
[1717417503200,0.16281367,3821.2,3820.9,9.235]
[1717417503353,0.54857218,3821.3,3821.0,0.9235]
[1717417503795,0.54857218,3821.4,3821.0,0.9235]
[1717417504011,0.54857218,3821.5,3821.0,3.9235]
[1717417504298,0.54857218,3821.5,3821.1,2.3005]
[1717417504471,0.16277675,3821.4,3821.2,1.5459]
[1717417504672,0.54857218,3821.5,3821.2,1.5459]
[1717417505596,0.54857218,3821.5,3821.2,4.5459]
[1717417505991,0.55684098,3821.7,3821.2,4.5459]
[1717417506188,0.16274346,3821.6,3821.2,4.5459]
[1717417506504,0.55684098,3821.7,3821.3,0.77699]
[1717417506993,0.0082688,3821.7,3821.3,0.77699]
[1717417509424,0.0082688,3821.7,3821.4,2.4586]
[1717417509596,0.0082688,3821.7,3821.4,5.4586]
[1717417511225,0.0082688,3821.7,3821.4,3.0]
[1717417511423,0.16271553,3821.6,3821.0,3.0]
[1717417511731,0.54857218,3821.6,3821.0,3.0]
[1717417512022,0.7112941,3821.5,3821.0,3.0]
[1717417512227,0.54857218,3821.6,3821.1,1.52477]
[1717417512376,0.55684098,3821.7,3821.1,1.52477]
[1717417513130,0.16272008,3821.6,3821.1,1.52477]
[1717417513350,0.55684098,3821.7,3821.0,3.0]
[1717417513537,0.16271554,3821.6,3821.0,3.0]
[1717417513681,0.55684098,3821.7,3821.0,3.0]
[1717417514014,0.16271528,3821.6,3821.5,0.781]
[1717417514523,0.0082688,3821.7,3821.5,0.781]
[1717417515500,0.0082688,3821.7,3821.0,3.0]
[1717417515501,0.0082688,3821.7,3821.6,0.781]
[1717417516028,0.17095153,3821.7,3821.6,0.781]
[1717417516399,0.0082688,3821.7,3821.6,0.781]
[1717417516833,0.0082688,3821.7,3821.1,2.4524]
[1717417517097,0.0082688,3821.7,3821.6,0.781]
[1717417518644,0.0082688,3821.7,3821.6,3.0876]
[1717417518800,0.0082688,3821.7,3821.6,6.0876]
[1717417524756,0.0082688,3821.7,3821.6,14.0002]
[1717417527833,0.0082688,3821.7,3821.6,13.2192]
[1717417528052,0.0082688,3821.7,3821.6,11.6936]
[1717417529059,0.29145853,3822.7,3821.6,13.09152]
[1717417529268,0.15684534,3822.6,3822.2,0.781]
[1717417529482,0.15684534,3822.5,3822.2,0.781]
[1717417529660,2.66723681,3823.0,3822.2,0.781]
[1717417529860,1.51289578,3823.0,3822.2,0.781]
[1717417530576,0.3997292,3822.9,3821.9,3.0]
[1717417530775,0.56534507,3822.9,3822.3,0.781]
[1717417531073,3.08368277,3823.0,3821.8,2.4183]
[1717417531074,0.41644596,3823.0,3822.5,0.781]
[1717417531236,0.98177787,3823.0,3822.5,0.781]
[1717417531442,0.41644596,3823.0,3822.5,0.781]
[1717417532377,3.3584028,3823.1,3822.5,0.781]
[1717417532564,2.79308521,3823.1,3822.5,0.781]
[1717417532762,1.69663539,3823.1,3822.3,0.781]
[1717417532969,0.1258484,3823.1,3822.3,0.781]
[1717417533156,0.69116034,3823.1,3822.3,0.781]
[1717417533474,2.53569559,3823.0,3822.3,0.781]
[1717417533638,2.13609893,3823.0,3822.3,0.781]
[1717417533840,1.69663539,3823.1,3822.3,0.781]
[1717417534076,2.26194828,3823.1,3822.3,0.781]
[1717417534582,1.69663539,3823.1,3822.3,0.781]
[1717417534878,2.53571374,3823.0,3822.1,0.781]
[1717417535077,0.56534705,3822.9,3822.1,0.781]
[1717417535481,1.57078699,3822.9,3822.1,0.781]
[1717417535918,0.5653651,3822.8,3822.1,0.781]
[1717417536599,0.5653651,3822.8,3821.7,3.0]
[1717417536746,0.56536795,3822.7,3821.9,0.781]
[1717417536945,1.57078699,3822.7,3821.9,0.781]
[1717417538083,2.39198594,3822.7,3821.9,0.781]
[1717417538383,0.56539002,3822.6,3822.1,0.781]
[1717417538557,1.38658897,3822.6,3821.7,3.0]
[1717417538761,1.38658897,3822.6,3821.8,0.781]
[1717417539161,0.5475144,3822.4,3821.8,0.781]
[1717417539565,0.5475144,3822.4,3822.0,0.781]
[1717417539960,0.5475144,3822.4,3821.6,7.9126]
[1717417539961,1.3285144,3822.3,3821.6,7.9126]
[1717417540161,0.781,3822.1,3821.6,7.9126]
[1717417540378,0.5475144,3822.1,3821.6,7.9126]
[1717417540748,0.5475144,3822.1,3821.6,8.6936]
[1717417540957,0.5475144,3822.0,3821.6,7.9126]
[1717417541494,0.5475144,3821.9,3821.6,7.9126]
[1717417541900,0.5475144,3821.8,3821.6,7.9126]
[1717417542753,0.5475144,3821.7,3821.6,7.9126]
[1717417543407,0.82119895,3821.8,3821.6,7.9126]
[1717417543902,0.82119895,3821.7,3821.6,7.9126]
[1717417544304,1.60219895,3821.7,3821.6,7.9126]
[1717417544599,3.26999612,3821.7,3821.6,7.9126]
[1717417544754,4.84064919,3821.7,3821.6,7.9126]
[1717417545414,3.74419937,3821.7,3821.6,7.9126]
[1717417545710,3.54242322,3821.7,3821.6,7.9126]
[1717417545878,4.09242322,3821.7,3821.6,7.9126]
[1717417546092,2.7235463,3821.7,3821.6,7.9126]
[1717417546269,4.09333471,3821.7,3821.6,7.9126]
[1717417546470,3.31233471,3821.7,3821.6,7.9126]
[1717417546675,4.09333471,3821.7,3821.6,7.9126]
[1717417546912,2.7235463,3821.7,3821.6,7.9126]
[1717417547515,4.09312173,3821.7,3821.6,7.9126]
[1717417547706,2.7235463,3821.7,3821.6,7.9126]
[1717417547903,2.72361702,3821.7,3821.6,7.9126]
[1717417550097,1.94261702,3821.7,3821.6,7.9126]
[1717417550297,2.72361702,3821.7,3821.6,7.9126]
[1717417550502,4.29485611,3821.7,3821.6,7.9126]
[1717417551013,2.72361702,3821.7,3821.6,7.9126]
[1717417551402,4.29478383,3821.7,3821.6,7.9126]
[1717417551603,2.72361702,3821.7,3821.6,7.9126]
[1717417553723,1.94261702,3821.7,3821.6,7.9126]
[1717417554024,2.72361702,3821.7,3821.6,7.9126]
[1717417554386,4.2948696,3821.7,3821.6,7.9126]
[1717417554805,2.72361702,3821.7,3821.6,7.9126]
[1717417555330,5.66213784,3821.7,3821.6,7.9126]
[1717417555515,2.72361702,3821.7,3821.6,7.9126]
[1717417555911,3.251743,3821.7,3821.6,7.9126]
[1717417557126,2.72362392,3821.7,3821.6,7.9126]
[1717417557425,3.25148834,3821.7,3821.6,7.9126]
[1717417557633,2.47048834,3821.7,3821.6,7.9126]
[1717417557932,4.29488686,3821.7,3821.6,7.9126]
[1717417560014,4.09090554,3821.7,3821.6,7.9126]
[1717417560214,5.72363579,3821.7,3821.6,7.9126]
[1717417560596,6.38044507,3821.7,3821.6,7.9126]
[1717417561320,8.02309737,3821.7,3821.6,7.9126]
[1717417561508,6.64214507,3821.7,3821.6,5.97224763]
[1717417561838,6.64222753,3821.7,3821.6,5.97224763]
[1717417562037,7.36349146,3821.7,3821.6,5.97224763]
[1717417562189,8.02030074,3821.7,3821.6,5.97224763]
[1717417562395,6.38052753,3821.7,3821.6,5.97224763]
[1717417562802,10.77830074,3821.7,3821.6,0.19629852]
[1717417563001,2.758,3821.5,3818.8,2.3362]
[1717417563211,0.781,3819.6,3818.8,2.3362]
[1717417563399,0.54651245,3820.3,3818.8,2.3362]
[1717417563594,0.781,3819.9,3818.9,2.3362]
[1717417563795,0.781,3819.7,3818.9,2.3362]
[1717417564094,0.81976867,3820.4,3818.9,2.3362]
[1717417564095,0.781,3819.0,3818.9,2.3362]
[1717417564294,0.781,3819.0,3817.9,7.3]
[1717417564295,0.781,3819.0,3818.6,2.3362]
[1717417564504,0.781,3818.7,3818.0,2.3879]